bitfinex-derivatives/quotes_SOLF0:USTF0_20260126
["timestamp","ask_amount","ask_price","bid_price","bid_amount"]
[1769448892936,7.3062,123.3,123.24,76.70675518]
[1769448893137,7.3062,123.3,123.24,69.39715518]
[1769448893333,69.23834807,123.31,123.24,69.39715518]
[1769448895038,7.3053,123.32,123.24,76.70675518]
[1769448895440,7.3053,123.32,123.26,69.39715518]
[1769448898248,76.54254807,123.34,123.26,69.39715518]
[1769448900251,69.23834807,123.37,123.28,69.39715518]
[1769448900644,69.23834807,123.36,123.28,69.39715518]
[1769448900951,7.3032,123.35,123.28,69.39715518]
[1769448901744,7.3039,123.34,123.28,69.39715518]
[1769448903745,7.3035,123.35,123.28,76.70435518]
[1769448904548,69.23834807,123.38,123.3,69.39715518]
[1769448905555,7.3017,123.38,123.3,69.39715518]
[1769448905754,69.23834807,123.4,123.3,69.39715518]
[1769448905965,182.78614807,123.42,123.31,74.93877294]
[1769448906257,69.23834807,123.42,123.34,69.39715518]
[1769448907359,7.2987,123.43,123.36,69.39715518]
[1769448907562,69.23834807,123.45,123.36,69.39715518]
[1769448908253,7.2972,123.46,123.39,69.39715518]
[1769448909259,76.53424807,123.48,123.39,69.39715518]
[1769448909454,97.31296947,123.51,123.4,69.39715518]
[1769448909652,97.31296947,123.51,123.41,69.39715518]
[1769448910551,97.31296947,123.51,123.43,76.69545518]
[1769448910761,28.0746214,123.51,123.43,69.39715518]
[1769448911365,28.0746214,123.51,123.45,69.39715518]
[1769448912562,35.3687214,123.51,123.45,69.39715518]
[1769448914466,28.0746214,123.51,123.45,69.39715518]
[1769448917457,28.0746214,123.51,123.45,76.69425518]
[1769448917663,28.0746214,123.51,123.45,69.39715518]
[1769448918161,28.0746214,123.51,123.47,69.39715518]
[1769448919467,7.2917,123.55,123.47,76.69315518]
[1769448920168,5.54161776,123.58,123.49,68.55149615]
[1769448920169,181.54420791,123.58,123.49,68.55149615]
[1769448920570,68.14360791,123.58,123.49,68.55149615]
[1769448920867,7.2907,123.57,123.49,75.84599615]
[1769448921060,68.14360791,123.58,123.49,68.55149615]
[1769448921574,68.14360791,123.56,123.49,68.55149615]
[1769448921866,68.14360791,123.56,123.47,69.2956]
[1769448921867,68.14360791,123.55,123.46,68.55149615]
[1769448922668,7.2919,123.55,123.46,68.55149615]
[1769448923169,68.14360791,123.57,123.49,68.55149615]
[1769448923662,7.2909,123.56,123.49,75.84619615]
[1769448923868,68.14360791,123.6,123.49,68.55149615]
[1769448924071,68.14360791,123.6,123.49,74.09311391]
[1769448924474,7.2897,123.58,123.49,68.55149615]
[1769448924867,7.2897,123.58,123.5,68.55149615]
[1769448925271,75.43250791,123.6,123.52,68.55149615]
[1769448926372,7.2889,123.6,123.54,68.55149615]
[1769448926572,7.2876,123.62,123.54,68.55149615]
[1769448926868,7.2876,123.62,123.55,75.84279615]
[1769448927069,7.2866,123.64,123.55,68.55149615]
[1769448927272,68.14360791,123.66,123.56,68.55149615]
[1769448927873,68.14360791,123.66,123.58,68.55149615]
[1769448928069,181.46820791,123.66,123.58,68.55149615]
[1769448928269,7.2867,123.63,123.58,68.55149615]
[1769448930863,7.286,123.65,123.58,68.55149615]
[1769448931573,7.2846,123.67,123.58,68.55149615]
[1769448931772,68.14360791,123.68,123.58,68.55149615]
[1769448932173,7.285,123.66,123.58,75.84089615]
[1769448932377,113.3128,123.67,123.58,68.55149615]
[1769448932578,181.44960791,123.68,123.58,68.55149615]
[1769448932884,7.285,123.66,123.58,75.84099615]
[1769448934268,68.14360791,123.68,123.6,68.55149615]
[1769448934472,68.14360791,123.7,123.6,68.55149615]
[1769448934777,181.44910791,123.68,123.6,68.55149615]
[1769448935878,7.285,123.66,123.6,68.55149615]
[1769448936680,7.2856,123.65,123.6,68.55149615]
[1769448942180,7.2867,123.63,123.56,7.2902]
[1769448942986,75.42960791,123.65,123.57,7.2901]
[1769448943183,68.14360791,123.65,123.57,7.2901]
[1769448943888,7.2867,123.63,123.54,436.407]
[1769448944289,7.2867,123.63,123.55,68.55149615]
[1769448944894,7.2867,123.63,123.57,68.55149615]
[1769448946392,7.2867,123.63,123.57,75.84169615]
[1769448947988,7.2867,123.63,123.57,68.55149615]
[1769448948290,68.14360791,123.63,123.55,68.55149615]
[1769448948886,7.2886,123.6,123.55,68.55149615]
[1769448949090,68.49508239,123.61,123.55,68.55149615]
[1769448949488,7.2891,123.59,123.55,68.55149615]
[1769448949884,68.49508239,123.65,123.55,68.55149615]
[1769448950589,68.49508239,123.63,123.55,68.55149615]
[1769448950795,68.49508239,123.66,123.56,67.8667877]
[1769448951197,7.2861,123.65,123.57,7.2902]
[1769448951393,7.2861,123.65,123.57,75.1569877]
[1769448951687,68.49508239,123.66,123.59,67.8667877]
[1769448952896,7.286,123.65,123.59,67.8667877]
[1769448953092,68.49508239,123.66,123.59,67.8667877]
[1769448954599,7.2868,123.63,123.59,67.8667877]
[1769448955894,68.49508239,123.65,123.59,67.8667877]
[1769448956095,68.49508239,123.63,123.53,62.0]
[1769448956492,68.49508239,123.63,123.52,137.47829436]
[1769448957194,7.2885,123.6,123.53,7.292]
[1769448958098,7.2885,123.6,123.53,75.1587877]
[1769448958795,7.2885,123.6,123.54,7.2919]
[1769448959295,7.2885,123.6,123.54,75.1586877]
[1769448960297,68.49508239,123.62,123.55,67.8667877]
[1769448960492,68.49508239,123.64,123.55,67.8667877]
[1769448961090,75.78168239,123.64,123.58,7.2896]
[1769448961296,68.49508239,123.64,123.58,75.1563877]
[1769448962599,7.2855,123.65,123.59,75.1555877]
[1769448962806,3.67905918,123.65,123.59,77.55613697]
[1769448963097,2.40054927,123.68,123.61,67.8667877]
[1769448963299,9.68424927,123.68,123.61,77.55463697]
[1769448963504,9.68424927,123.68,123.61,70.26733697]
[1769448963704,70.89563166,123.7,123.61,70.26733697]
[1769448963909,2.40054927,123.69,123.63,75.1533877]
[1769448964107,2.40054927,123.69,123.63,67.8667877]
[1769448964605,9.68424927,123.69,123.63,67.8667877]
[1769448964905,2.40054927,123.69,123.63,67.8667877]
[1769448965505,2.40054927,123.68,123.61,67.8667877]
[1769448965907,2.40054927,123.66,123.61,67.8667877]
[1769448966608,2.40054927,123.66,123.59,75.1557877]
[1769448966801,70.89563166,123.66,123.59,67.8667877]
[1769448967002,2.40054927,123.65,123.59,67.8667877]
[1769448967497,7.2862,123.64,123.59,67.8667877]
[1769448967899,75.78188239,123.63,123.56,75.1571877]
[1769448968103,68.49508239,123.63,123.56,67.8667877]
[1769448968409,68.49508239,123.63,123.55,67.8667877]
[1769448969199,7.2873,123.62,123.55,75.1581877]
[1769448971499,7.288,123.61,123.55,75.1581877]
[1769448972509,68.49508239,123.63,123.55,75.1581877]
[1769448973402,7.288,123.61,123.55,67.8667877]
[1769448973603,68.49508239,123.62,123.54,330.2119]
[1769448973904,68.49508239,123.62,123.53,67.8667877]
[1769448973905,68.49508239,123.6,123.53,67.8667877]
[1769448974910,7.2898,123.58,123.53,67.8667877]
[1769448976909,68.49508239,123.57,123.51,67.8667877]
[1769448977106,68.49508239,123.6,123.51,67.8667877]
[1769448977303,75.78408239,123.6,123.53,67.8667877]
[1769448978611,75.78408239,123.6,123.53,75.1592877]
[1769448980907,68.49508239,123.6,123.54,72.1241913]
[1769448981104,68.88382813,123.63,123.54,72.1241913]
[1769448981913,7.288,123.61,123.54,72.1241913]
[1769448982105,7.288,123.61,123.54,64.8322913]
[1769448982312,68.88382813,123.63,123.55,72.1235913]
[1769448982907,76.17102813,123.63,123.55,72.1235913]
[1769448983412,68.88382813,123.63,123.55,64.8322913]
[1769448984809,68.88382813,123.65,123.57,64.8322913]
[1769448985506,7.2861,123.64,123.58,72.1217913]
[1769448985701,68.88382813,123.65,123.58,72.1217913]
[1769448986213,7.2861,123.64,123.58,72.1217913]
[1769448987217,68.88382813,123.65,123.58,72.1217913]
[1769448987517,68.88382813,123.65,123.58,64.8322913]
[1769448989007,7.2867,123.63,123.58,64.8322913]
[1769448989511,68.88382813,123.65,123.58,72.1218913]
[1769448990121,7.2855,123.65,123.58,72.1218913]
[1769448991612,68.88382813,123.71,123.58,64.8322913]
[1769448991920,68.88382813,123.69,123.59,64.8322913]
[1769448992421,68.88382813,123.69,123.61,72.1200913]
[1769448992617,68.88382813,123.71,123.61,64.8322913]
[1769448992818,68.88382813,123.71,123.64,72.1181913]
[1769448993522,68.88382813,123.71,123.64,64.8322913]
[1769448994411,68.88382813,123.71,123.65,7.2852]
[1769448994615,68.88382813,123.73,123.65,72.1174913]
[1769448996022,76.16312813,123.76,123.67,64.8322913]
[1769448996319,68.88382813,123.76,123.67,64.8322913]
[1769448996622,68.88382813,123.76,123.69,64.8322913]
[1769448997317,68.88382813,123.76,123.69,72.1151913]
[1769448997521,35.02679455,123.77,123.69,64.8322913]
[1769448997522,27.74819455,123.77,123.69,64.8322913]
[1769448997823,27.74819455,123.77,123.71,64.8322913]
[1769448998322,27.74819455,123.77,123.72,64.8322913]
[1769448998921,27.74819455,123.77,123.73,7.2806]
[1769448999820,27.74819455,123.77,123.72,64.8322913]
[1769449000028,27.74819455,123.77,123.69,64.8322913]
[1769449000615,103.91052268,123.77,123.69,72.1152913]
[1769449000924,68.88382813,123.76,123.69,64.8322913]
[1769449001125,76.16352813,123.75,123.69,64.8322913]
[1769449001326,76.16352813,123.75,123.67,387.6522913]
[1769449001627,76.16472813,123.73,123.67,387.6522913]
[1769449002217,76.16472813,123.73,123.67,64.8322913]
[1769449002422,76.16472813,123.73,123.66,7.2848]
[1769449002832,76.16472813,123.73,123.66,72.1170913]
[1769449004025,76.16472813,123.73,123.66,64.8322913]
[1769449004230,7.2815,123.72,123.66,64.8322913]
[1769449004827,7.2823,123.71,123.63,387.6122913]
[1769449005234,68.88382813,123.71,123.63,387.6122913]
[1769449005621,7.2826,123.7,123.63,387.6122913]
[1769449006531,7.2833,123.69,123.63,387.6122913]
[1769449007132,7.2824,123.71,123.64,64.8322913]
[1769449008936,7.2824,123.71,123.64,72.1181913]
[1769449009134,68.88382813,123.73,123.64,72.1181913]
[1769449009331,7.2813,123.73,123.64,64.8322913]
[1769449009730,7.2813,123.73,123.66,71.31609405]
[1769449009932,74.67081934,123.73,123.66,71.31609405]
[1769449010640,67.38951934,123.72,123.64,64.03129405]
[1769449011240,67.38951934,123.72,123.65,64.03129405]
[1769449011424,7.2812,123.73,123.65,64.03129405]
[1769449011831,7.2812,123.73,123.66,71.31609405]
[1769449012530,113.2327,123.76,123.64,64.03129405]
[1769449012531,67.38951934,123.72,123.64,64.03129405]
[1769449013131,67.38951934,123.72,123.65,64.03129405]
[1769449014640,67.38951934,123.71,123.65,64.03129405]
[1769449015436,7.2825,123.7,123.63,330.0666]
[1769449015939,7.2825,123.7,123.63,394.09789405]
[1769449016238,67.38951934,123.7,123.64,7.2858]
[1769449016639,67.38951934,123.7,123.64,71.31709405]
[1769449016828,7.2822,123.71,123.64,71.31709405]
[1769449017440,74.67171934,123.71,123.64,71.31709405]
[1769449017742,67.38951934,123.69,123.61,64.03129405]
[1769449018440,74.67391934,123.67,123.6,322.76]
[1769449018742,67.38951934,123.67,123.6,322.76]
[1769449019739,67.38951934,123.67,123.6,330.0484]
[1769449020036,67.38951934,123.67,123.6,386.79129405]
[1769449020340,6.10868689,123.69,123.61,64.03129405]
[1769449020341,74.67261934,123.69,123.61,64.03129405]
[1769449021537,74.67191934,123.71,123.62,64.03129405]
[1769449021938,74.67191934,123.71,123.63,64.03129405]
[1769449022133,67.38951934,123.71,123.65,71.31669405]
[1769449022336,67.38951934,123.73,123.65,64.03129405]
[1769449022732,67.38951934,123.73,123.67,7.2841]
[1769449022942,7.2802,123.74,123.67,71.31539405]
[1769449023340,67.38951934,123.76,123.67,64.03129405]
[1769449023641,67.38951934,123.76,123.68,64.03129405]
[1769449024342,74.66851934,123.76,123.7,7.2824]
[1769449024839,27.74819455,123.77,123.71,71.31299405]
[1769449025045,27.74819455,123.77,123.71,64.03129405]
[1769449025343,27.74819455,123.77,123.72,7.2813]
[1769449025937,27.74819455,123.77,123.73,71.31189405]
[1769449026548,67.38951934,123.81,123.74,71.31129405]
[1769449027045,67.38951934,123.81,123.74,64.03129405]
[1769449028247,74.66581934,123.81,123.74,64.03129405]
[1769449028439,67.38951934,123.81,123.74,64.03129405]
[1769449028948,67.38951934,123.81,123.74,71.31119405]
[1769449030449,74.66561934,123.81,123.72,394.07239405]
[1769449030646,74.66561934,123.81,123.73,64.03129405]
[1769449030943,386.40185506,123.83,123.74,64.03129405]
[1769449031149,393.67695506,123.83,123.75,7.2793]
[1769449031347,386.40185506,123.83,123.75,64.03129405]
[1769449031546,67.38951934,123.83,123.75,64.03129405]
[1769449032640,548.9168,123.89,123.77,64.03129405]
[1769449032641,74.66291934,123.86,123.77,64.03129405]
[1769449033239,74.66291934,123.86,123.78,7.2776]
[1769449033452,67.38951934,123.84,123.77,64.03129405]
[1769449034256,74.66401934,123.84,123.77,64.03129405]
[1769449034661,113.1417,123.86,123.77,64.03129405]
[1769449034662,74.66311934,123.86,123.77,64.03129405]
[1769449034865,67.38951934,123.86,123.77,64.03129405]
[1769449035068,67.38951934,123.86,123.77,71.30959405]
[1769449035364,74.66401934,123.84,123.77,64.03129405]
[1769449036066,67.38951934,123.82,123.71,64.03129405]
[1769449036264,67.38951934,123.81,123.71,64.03129405]
[1769449036767,74.66631934,123.8,123.72,7.2812]
[1769449037158,67.38951934,123.8,123.72,64.03129405]
[1769449037867,67.38951934,123.83,123.75,71.31059405]
[1769449038059,67.38951934,123.83,123.75,64.03129405]
[1769449038870,67.38951934,123.83,123.76,76.33990252]
[1769449040264,68.25197682,123.85,123.78,7.2777]
[1769449040468,68.25197682,123.85,123.78,76.33890252]
[1769449041361,68.25197682,123.85,123.79,69.06120252]
[1769449041667,75.52417682,123.88,123.79,69.06120252]
[1769449042771,75.52417682,123.88,123.8,7.2765]
[1769449042966,68.25197682,123.88,123.8,69.06120252]
[1769449043170,68.25197682,123.88,123.8,76.33730252]
[1769449044874,7.2726,123.87,123.8,76.33730252]
[1769449045275,68.25197682,123.87,123.75,69.06120252]
[1769449045472,7.2749,123.83,123.77,69.06120252]
[1769449045666,68.25197682,123.89,123.77,69.06120252]
[1769449045972,68.25197682,123.88,123.79,7.2772]
[1769449046375,7.2734,123.86,123.78,69.06120252]
[1769449046770,68.25197682,123.86,123.78,76.33890252]
[1769449047368,68.25197682,123.86,123.78,69.06120252]
[1769449047568,68.25197682,123.85,123.78,69.06120252]
[1769449049571,7.2743,123.84,123.78,69.06120252]
[1769449050480,75.52627682,123.84,123.77,7.2784]
[1769449050776,75.52627682,123.84,123.75,69.06120252]
[1769449051382,7.2749,123.83,123.76,76.34010252]
[1769449052070,7.2763,123.81,123.75,69.06120252]
[1769449052878,7.2767,123.8,123.75,69.06120252]
[1769449053077,75.52867682,123.8,123.74,158.38]
[1769449053372,7.2767,123.8,123.74,234.72130252]
[1769449053574,75.52807682,123.82,123.74,227.44120252]
[1769449053773,75.52807682,123.82,123.75,69.06120252]
[1769449053967,7.275,123.83,123.76,76.34010252]
[1769449054171,68.25197682,123.85,123.76,69.06120252]
[1769449055479,7.2743,123.84,123.76,69.06120252]
[1769449056075,7.2743,123.84,123.77,76.33960252]
[1769449056381,7.2743,123.84,123.77,69.06120252]
[1769449056774,75.52567682,123.85,123.78,7.2777]
[1769449056976,68.25197682,123.88,123.78,69.06120252]
[1769449057177,68.25197682,123.88,123.79,69.06120252]
[1769449057579,75.52387682,123.88,123.81,7.276]
[1769449059588,68.25197682,123.91,123.82,69.06120252]
[1769449059985,68.25197682,123.91,123.84,7.2742]
[1769449061982,68.25197682,123.91,123.82,69.06120252]
[1769449062488,68.25197682,123.91,123.84,7.2741]
[1769449062983,7.2709,123.9,123.82,76.33620252]
[1769449063183,68.25197682,123.9,123.82,76.33620252]
[1769449063885,7.2715,123.89,123.82,76.33620252]
[1769449064486,75.52407682,123.88,123.81,7.2761]
[1769449065886,75.52457682,123.87,123.8,69.06120252]
[1769449066485,7.2731,123.86,123.8,69.06120252]
[1769449066684,75.52507682,123.86,123.78,69.06120252]
[1769449066991,7.2728,123.87,123.81,7.2761]
[1769449067181,74.35099657,123.89,123.81,7.2761]
[1769449067182,68.25197682,123.89,123.81,7.2761]
[1769449067492,68.25197682,123.89,123.8,69.06120252]
[1769449067689,68.25197682,123.89,123.81,69.06120252]
[1769449068790,7.2713,123.9,123.81,69.06120252]
[1769449068988,7.2713,123.9,123.83,7.2748]
[1769449070589,7.2715,123.89,123.83,7.2748]
[1769449070790,75.69169543,123.89,123.82,66.32349641]
[1769449071788,75.69169543,123.89,123.82,73.59899641]
[1769449073594,7.2721,123.88,123.82,73.59899641]
[1769449075893,7.2726,123.87,123.81,7.276]
[1769449076098,68.42019543,123.87,123.8,66.32349641]
[1769449076596,7.2731,123.86,123.8,73.59959641]
[1769449077191,75.69279543,123.87,123.8,73.59959641]
[1769449078991,75.69279543,123.87,123.77,435.5962]
[1769449078992,7.272,123.88,123.82,7.2754]
[1769449079297,7.272,123.88,123.82,73.59889641]
[1769449079900,7.2726,123.87,123.81,7.2761]
[1769449080088,75.69279543,123.87,123.81,7.2761]
[1769449081697,2.39233163,123.86,123.81,7.2761]
[1769449081996,70.81252706,123.86,123.81,7.2761]
[1769449083096,2.39233163,123.85,123.8,73.60009641]
[1769449083692,78.08572706,123.86,123.8,73.60009641]
[1769449084795,2.39233163,123.85,123.8,73.60009641]
[1769449085801,2.39233163,123.83,123.77,388.70349641]
[1769449086001,70.81252706,123.85,123.78,68.71582804]
[1769449086197,68.42019543,123.85,123.78,68.71582804]
[1769449086603,127.6189,123.93,123.81,68.71582804]
[1769449086799,2.39233163,123.9,123.82,66.32349641]
[1769449086997,2.39233163,123.9,123.82,68.71582804]
[1769449087706,2.39233163,123.86,123.81,7.276]
[1769449087906,68.42019543,123.89,123.82,66.32349641]
[1769449088100,2.39233163,123.9,123.83,68.71582804]
[1769449088908,2.39233163,123.9,123.84,7.2737]
[1769449090014,75.69089543,123.91,123.84,7.2737]
[1769449090308,2.39233163,123.89,123.83,66.32349641]
[1769449090608,2.39233163,123.88,123.83,66.32349641]
[1769449091000,2.39233163,123.87,123.81,66.32349641]
[1769449091200,2.39233163,123.86,123.81,66.32349641]
[1769449091704,2.39233163,123.87,123.81,66.32349641]
[1769449092512,2.39233163,123.86,123.81,66.32349641]
[1769449092904,7.2726,123.87,123.81,73.59949641]
[1769449093104,2.39233163,123.86,123.81,73.59949641]
[1769449093305,9.66493163,123.87,123.81,73.59949641]
[1769449095815,68.42019543,123.88,123.82,7.2754]
[1769449096011,70.81252706,123.88,123.82,7.2754]
[1769449096311,2.39233163,123.88,123.82,73.59889641]
[1769449096515,70.81252706,123.9,123.83,66.32349641]
[1769449096714,70.81252706,123.9,123.83,68.71582804]
[1769449097612,78.08332706,123.9,123.84,7.2742]
[1769449099415,64.85870913,123.95,123.85,66.51085435]
[1769449099615,67.25104076,123.93,123.85,68.90318598]
[1769449099812,2.39233163,123.92,123.85,68.90318598]
[1769449100315,9.66213163,123.92,123.86,7.2731]
[1769449100503,72.12850913,123.92,123.85,66.51085435]
[1769449100707,74.52084076,123.92,123.85,68.90318598]
[1769449101108,72.12850913,123.92,123.85,68.90318598]
[1769449101309,72.12850913,123.92,123.86,7.273]
[1769449103920,64.85870913,123.92,123.86,7.273]
[1769449104119,64.85870913,123.92,123.86,9.66533163]
[1769449104521,7.2704,123.91,123.85,73.78425435]
[1769449105218,2.39233163,123.9,123.84,322.32]
[1769449105520,67.25104076,123.9,123.84,322.32]
[1769449105725,67.25104076,123.9,123.84,388.83085435]
[1769449106013,64.85870913,123.9,123.84,66.51085435]
[1769449106415,67.25104076,123.9,123.84,66.51085435]
[1769449106815,64.85870913,123.9,123.84,66.51085435]
[1769449107019,64.85870913,123.9,123.84,73.78495435]
[1769449109219,72.12960913,123.9,123.84,73.78495435]
[1769449109923,67.25104076,123.86,123.79,2.39233163]
[1769449110224,67.25104076,123.86,123.78,68.90318598]
[1769449110925,74.52414076,123.86,123.8,7.2765]
[1769449115132,7.2726,123.87,123.81,73.78665435]
[1769449116527,72.13130913,123.87,123.81,73.78665435]
[1769449116824,72.13130913,123.87,123.81,66.51085435]
[1769449117734,74.52364076,123.87,123.81,66.51085435]
[1769449117933,74.52364076,123.87,123.81,73.78685435]
[1769449120832,2.39233163,123.84,123.79,73.78775435]
[1769449121438,2.39233163,123.82,123.76,388.77085435]
[1769449121638,2.39379862,123.82,123.76,388.77085435]
[1769449122039,2.39379862,123.82,123.77,7.2784]
[1769449122238,67.25250775,123.83,123.77,7.2784]
[1769449123240,74.52760775,123.83,123.76,396.04985435]
[1769449123438,74.52760775,123.83,123.76,73.78985435]
[1769449123439,67.25250775,123.82,123.76,73.78985435]
[1769449125237,64.85870913,123.85,123.78,7.2777]
[1769449125432,67.25250775,123.84,123.78,73.78855435]
[1769449125634,67.25250775,123.84,123.78,66.51085435]
[1769449126239,2.39379862,123.83,123.78,66.51085435]
[1769449126444,67.25250775,123.83,123.77,7.2783]
[1769449126837,67.25250775,123.83,123.75,68.90465297]
[1769449127240,74.52760775,123.83,123.77,7.2783]
[1769449127638,74.52760775,123.83,123.75,68.90465297]
[1769449127639,67.25250775,123.82,123.75,66.51085435]
[1769449129046,74.52800775,123.82,123.76,7.2789]
[1769449129534,72.21959754,123.81,123.76,7.2789]
[1769449130046,72.21959754,123.81,123.75,73.79045435]
[1769449130047,2.39379862,123.8,123.75,73.79045435]
[1769449131043,72.21959754,123.81,123.75,73.79045435]
[1769449131340,2.39379862,123.8,123.75,73.79045435]
[1769449133540,72.21959754,123.8,123.73,136.27627647]
[1769449134543,72.21959754,123.8,123.73,74.27627647]
[1769449134946,72.21959754,123.78,123.73,7.2803]
[1769449135449,72.21959754,123.82,123.75,69.38977509]
[1769449136949,72.21959754,123.82,123.77,7.2784]
[1769449139147,72.21959754,123.85,123.79,66.99597647]
[1769449139350,69.82579892,123.85,123.79,66.99597647]
[1769449139544,69.82579892,123.85,123.79,74.27297647]
[1769449140145,69.82579892,123.85,123.8,7.2763]
[1769449141553,72.21959754,123.87,123.81,7.276]
[1769449141755,69.82579892,123.87,123.81,74.27197647]
[1769449142655,2.39379862,123.88,123.81,69.38977509]
[1769449142850,69.82579892,123.89,123.82,69.38977509]
[1769449143756,79.48959754,123.92,123.85,2.39379862]
[1769449143954,79.48959754,123.92,123.85,69.38977509]
[1769449144246,69.82579892,123.92,123.85,69.38977509]
[1769449144453,69.82579892,123.92,123.86,69.38977509]
[1769449144753,79.48839754,123.94,123.87,69.38977509]
[1769449144954,79.48839754,123.94,123.87,66.99597647]
[1769449145654,72.21959754,123.93,123.87,66.99597647]
[1769449146552,69.82579892,123.93,123.87,66.99597647]
[1769449147656,69.82579892,123.93,123.88,7.2718]
[1769449147856,69.82579892,123.93,123.88,9.66559862]
[1769449148445,69.82579892,123.95,123.88,69.38977509]
[1769449148651,69.82579892,123.95,123.89,76.66077509]
[1769449149159,69.82579892,123.95,123.89,74.26697647]
[1769449149746,69.82579892,123.95,123.89,76.66077509]
[1769449150651,69.82579892,123.95,123.9,7.2706]
[1769449150848,72.21959754,123.97,123.9,76.66037509]
[1769449151055,69.82579892,123.97,123.9,76.66037509]
[1769449151855,69.82579892,123.97,123.91,2.39379862]
[1769449152759,69.82579892,123.97,123.9,76.66037509]
[1769449153253,72.21959754,123.97,123.9,76.66037509]
[1769449153457,79.48639754,123.97,123.9,74.26657647]
[1769449154162,79.48699754,123.96,123.88,76.66147509]
[1769449155260,79.48699754,123.96,123.89,2.39379862]
[1769449155861,69.82579892,123.96,123.9,69.38977509]
[1769449156457,69.82579892,123.96,123.91,2.39379862]
[1769449156654,69.82579892,123.96,123.9,69.38977509]
[1769449157861,69.82579892,123.96,123.9,66.99597647]
[1769449158264,77.09309892,123.96,123.9,69.38977509]
[1769449158454,79.48689754,123.96,123.88,74.26787647]
[1769449158654,79.48689754,123.96,123.88,76.66167509]
[1769449159060,72.5904153,123.95,123.88,76.66167509]
[1769449159258,67.71631392,123.95,123.87,2.39379862]
[1769449159463,67.71631392,123.95,123.87,71.81251866]
[1769449159662,74.98461392,123.95,123.88,9.66559862]
[1769449160166,65.3225153,123.95,123.89,79.08371866]
[1769449160466,65.3225153,123.95,123.9,2.39379862]
[1769449161367,65.3225153,123.95,123.89,79.08371866]
[1769449161866,74.98421392,123.95,123.88,2.39379862]
[1769449162068,74.98421392,123.95,123.87,79.08461866]
[1769449162254,74.98421392,123.95,123.87,71.81251866]
[1769449163372,74.98421392,123.95,123.88,71.81251866]
[1769449163867,74.98481392,123.94,123.88,7.2719]
[1769449164372,67.71631392,123.94,123.88,7.2719]
[1769449164567,65.3225153,123.94,123.88,9.66569862]
[1769449164772,65.3225153,123.94,123.88,79.08441866]
[1769449165468,65.3225153,123.94,123.89,7.2713]
[1769449165971,65.3225153,123.94,123.88,71.81251866]
[1769449166159,65.3225153,123.94,123.88,69.41872004]
[1769449166971,65.3225153,123.94,123.88,76.69062004]
[1769449170169,65.3225153,123.94,123.89,7.2712]
[1769449172975,72.5898153,123.96,123.9,76.68942004]
[1769449173175,65.3225153,123.96,123.9,69.41872004]
[1769449173668,65.3225153,123.98,123.91,71.81251866]
[1769449173865,67.71631392,123.98,123.91,71.81251866]
[1769449174065,74.98341392,123.97,123.91,76.68882004]
[1769449174279,72.5896153,123.97,123.91,76.68882004]
[1769449174580,67.71631392,123.95,123.89,69.41872004]
[1769449174878,67.71631392,123.94,123.87,69.41872004]
[1769449175376,67.71631392,123.92,123.85,69.41872004]
[1769449175779,65.3225153,123.9,123.85,76.69242004]
[1769449176077,67.71631392,123.9,123.85,76.69242004]
[1769449176879,67.71631392,123.9,123.83,391.55872004]
[1769449177074,65.3225153,123.9,123.84,69.41872004]
[1769449177279,2.39379862,123.91,123.84,71.81251866]
[1769449177478,67.71631392,123.91,123.84,71.81251866]
[1769449178079,65.3225153,123.94,123.85,71.81251866]
[1769449178280,67.71631392,123.92,123.85,71.81251866]
[1769449178482,67.71631392,123.91,123.85,69.41872004]
[1769449178678,2.39379862,123.9,123.85,69.41872004]
[1769449179380,2.39379862,123.89,123.85,7.2731]
[1769449179680,67.71631392,123.9,123.84,69.41872004]
[1769449180273,67.71631392,123.9,123.85,7.2737]
[1769449181376,65.3225153,123.9,123.85,7.2737]
[1769449181582,67.7126398,123.92,123.84,71.80884454]
[1769449182585,67.7126398,123.92,123.85,7.2732]
[1769449182977,67.7126398,123.93,123.86,69.41872004]
[1769449183382,67.7126398,123.93,123.86,71.80884454]
[1769449183581,67.7126398,123.93,123.87,7.2724]
[1769449184781,74.9817398,123.93,123.87,7.2724]
[1769449185484,67.7126398,123.93,123.87,7.2724]
[1769449186078,2.3901245,123.92,123.87,7.2724]
[1769449187289,67.7126398,123.93,123.87,7.2724]
[1769449192683,74.9817398,123.93,123.87,7.2724]
[1769449193298,75.32072886,123.92,123.86,7.273]
[1769449193496,2.3901245,123.89,123.82,71.87462756]
[1769449193689,2.3901245,123.89,123.82,69.48450306]
[1769449193690,70.44115336,123.89,123.82,69.48450306]
[1769449193996,70.44115336,123.89,123.82,71.87462756]
[1769449194397,70.44115336,123.89,123.84,7.2737]
[1769449195600,68.05102886,123.89,123.84,7.2737]
[1769449196892,68.05102886,123.89,123.82,69.48450306]
[1769449196893,77.71255336,123.89,123.82,69.48450306]
[1769449197586,2.3901245,123.87,123.82,7.2752]